[Event "Fagernes Open 2021"]
[Site "Fagernes"]
[Date "2021.10.10"]
[Round "1.16"]
[White "Eriksen, Olai Dyrhaug"]
[Black "Velagapudi, Vihan"]
[Result "1-0"]
[ECO "E18"]
[WhiteElo "1809"]
[BlackElo "1444"]
[Annotator "NA RC"]
[PlyCount "115"]
[EventDate "2021.10.10"]
[EventCountry "NOR"]
[SourceTitle "playchess.com"]
[Source "ChessBase"]
[SourceQuality "1"]
[TimeControl "40/5400+30:1800+30"]

1. d4 {[%emt 0:00:00]} d5 {[%emt 0:00:00]} 2. c4 {[%emt 0:00:00]} e6 {[%emt 0:00:00]} 3. g3 {[%emt 0:00:00]} Nf6 {[%emt 0:00:00]} 4. Bg2 {[%emt 0:00:00]} Be7 {[%emt 0:00:00]} 5. Nf3 {[%emt 0:00:00]} O-O {[%emt 0:00:00]} 6. O-O {[%emt 0:00:00]} Nbd7 {[%emt 0:00:00]} 7. Nc3 {[%emt 0:00:00]} b6 {[%emt 0:00:00]} 8. cxd5 {[%emt 0:00:00]} exd5 {[%emt 0:00:00]} 9. Ne5 {[%emt 0:00:00]} Bb7 {[%emt 0:00:00]} 10. Qa4 {[%emt 0:00:00]} Nxe5 {[%emt 0:00:41]} 11. dxe5 {[%emt 0:00:00]} Ne8 {[%emt 0:00:31]} 12. Rd1 {[%emt 0:00:00]} c6 {[%emt 0:02:09]} 13. e4 {[%emt 0:00:00]} Nc7 {[%emt 0:01:10]} 14. exd5 {[%emt 0:01:07]} cxd5 {[%emt 0:01:55]} 15. Qb3 {[%emt 0:03:48]} Bc5 {[%emt 0:11:13]} 16. Nxd5 {[%emt 0:03:20]} Nxd5 {[%emt 0:02:03]} 17. Bxd5 {[%emt 0:00:30]} Bxd5 {[%emt 0:01:24]} 18. Rxd5 {[%emt 0:03:31]} Qe7 {[%emt 0:01:54]} 19. Bf4 {[%emt 0:06:00]} g5 {[%emt 0:08:09]} 20. Bd2 {[%emt 0:15:03]} Rad8 {[%emt 0:04:30]} 21. Bc3 {[%emt 0:03:56]} Rxd5 {[%emt 0:03:49]} 22. Qxd5 {[%emt 0:00:08]} Rd8 {[%emt 0:01:00]} 23. Qe4 {[%emt 0:01:52]} Qe6 {[%emt 0:10:56]} 24. a4 {[%emt 0:13:29]} a5 {[%emt 0:04:06]} 25. Re1 {[%emt 0:07:27]} Rd5 {[%emt 0:03:02]} 26. h4 {[%emt 0:09:08]} h6 (26... gxh4 $16 {keeps fighting.} 27. gxh4 Qg6+ 28. Kf1 Rd8) 27. hxg5 {[%emt 0:00:00]} hxg5 {[%emt 0:03:10]} 28. Kg2 {[%emt 0:00:00]} Rd7 {[%emt 0:12:31]} 29. f3 {[%emt 0:01:54]} Bf8 {[%emt 0:06:07]} 30. Rh1 {[%emt 0:02:32]} Bg7 {[%emt 0:01:58]} 31. Qa8+ {[%emt 0:02:43]} Bf8 {[%emt 0:00:12]} 32. Qe4 $2 {[%emt 0:01:29]} (32. Rh5 $18 f6 33. exf6 Qe2+ 34. Kh3 Qe6+ 35. g4) 32... Bg7 {[%emt 0:00:11]} 33. Rh5 {[%emt 0:00:47]} Bh6 {[%emt 0:01:45]} 34. g4 {[%emt 0:04:56]} Kg7 {[%emt 0:02:25]} 35. Qf5 {[%emt 0:04:32]} Rd1 {[%emt 0:04:06]} 36. Rh1 {[%emt 0:01:59]} Rd5 {[%emt 0:02:18]} 37. Re1 {[%emt 0:03:22]} Kf8 {[%emt 0:04:08]} 38. Re4 {[%emt 0:02:50]} Ke7 {[%emt 0:02:54]} 39. Qf6+ {[%emt 0:03:07]} Kd7 {[%emt 0:01:36]} 40. Qh8 {[%emt 0:02:02]} Qg6 {[%emt 0:02:20]} 41. e6+ {[%emt 0:34:31]} fxe6 {[%emt 0:30:53]} 42. Rc4 {[%emt 0:03:17]} Rc5 {[%emt 0:00:39]} 43. Rxc5 {[%emt 0:00:34]} bxc5 {[%emt 0:00:05]} 44. Kg3 {[%emt 0:01:59]} (44. Bxa5 $142 Bg7 45. Qd8+ Kc6 46. Qc7+ Kd5 47. Qd7+ Kc4 48. Qb5+ Kd5 49. Qb7+ Kc4 50. b3+ Kd3 51. Qb5+ Kc2 52. Bb6) 44... Qb1 {[%emt 0:01:10] [#]} 45. Kf2 $1 {[%emt 0:00:00]} ({Not} 45. Qxh6 $2 Qg1+ 46. Kh3 Qh1+ {[%mdl 64] Double Attack} 47. Kg3 Qxh6 $19) 45... Qc2+ {[%emt 0:00:00]} 46. Ke3 {[%emt 0:00:00]} ({Much less strong is} 46. Kg3 $6 Qd1 $18) 46... Qg6 $18 {[%emt 0:00:00]} (46... Qc1+ 47. Ke2 (47. Bd2 Qg1+ 48. Kd3 Qf1+ 49. Kc2 Qc4+ {[%mdl 64] Double Attack} 50. Qc3 Qxa4+ 51. b3 Qa2+ 52. Qb2 Qxb2+ 53. Kxb2 Bg7+ 54. Kc2 Bf6 $16) 47... Qh1) 47. Bxa5 {[%emt 0:00:00]} Bg7 {[%emt 0:00:00]} 48. Qd8+ {[%emt 0:00:00]} Kc6 {[%emt 0:00:00]} 49. Qc8+ {[%emt 0:00:00]} Kd6 {[%emt 0:00:00]} 50. Qc7+ {[%emt 0:00:00]} Kd5 {[%emt 0:00:00]} 51. Qd7+ {[%emt 0:00:00]} Kc4 {[%emt 0:00:00]} 52. Qb5+ {[%emt 0:00:00]} Kd5 {[%emt 0:00:00]} 53. Qb7+ {[%emt 0:00:00]} Kd6 {[%emt 0:00:00]} 54. Bc7+ {[%emt 0:00:00]} Ke7 {[%emt 0:00:00]} 55. Be5+ {[%emt 0:00:00]} Kf8 {[%emt 0:00:00]} 56. Qxg7+ {[%emt 0:00:00]} Qxg7 {[%emt 0:00:00]} 57. Bxg7+ {[%emt 0:00:00]} Kxg7 {[%emt 0:00:00]} 58. a5 {[%emt 0:00:00]} 1-0

[Event "Fagernes Open 2021"]
[Site "Fagernes"]
[Date "2021.10.10"]
[Round "1.17"]
[White "Evensen, Per-Erik"]
[Black "Ostensen, Nicolai Maxime"]
[Result "0-1"]
[ECO "E14"]
[WhiteElo "1442"]
[BlackElo "1768"]
[Annotator "NA"]
[PlyCount "116"]
[EventDate "2021.10.10"]
[EventCountry "NOR"]
[SourceTitle "playchess.com"]
[Source "ChessBase"]
[SourceQuality "1"]
[TimeControl "40/5400+30:1800+30"]

1. d4 {[%emt 0:00:00]} Nf6 {[%emt 0:00:00]} 2. c4 {[%emt 0:00:00]} e6 {[%emt 0:00:00]} 3. Nf3 {[%emt 0:00:00]} d5 {[%emt 0:00:00]} 4. e3 {[%emt 0:00:00]} Be7 {[%emt 0:00:00]} 5. Nc3 {[%emt 0:00:00]} O-O {[%emt 0:00:00]} 6. Be2 {[%emt 0:00:00]} b6 {[%emt 0:00:00]} 7. O-O {[%emt 0:00:00]} Bb7 {[%emt 0:00:00]} 8. b3 {[%emt 0:01:15]} Nbd7 {[%emt 0:00:00]} 9. Bb2 {[%emt 0:01:02]} Rc8 {[%emt 0:00:00]} 10. Rc1 {[%emt 0:03:23]} Re8 {[%emt 0:00:00]} 11. cxd5 {[%emt 0:03:41]} exd5 {[%emt 0:00:00]} 12. Re1 {[%emt 0:04:32]} c6 {[%emt 0:00:55]} 13. Bf1 {[%emt 0:04:49]} Bd6 {[%emt 0:00:50]} 14. g3 {[%emt 0:02:28]} a5 {[%emt 0:03:18]} 15. Bg2 {[%emt 0:03:26]} b5 {[%emt 0:02:03]} 16. a3 {[%emt 0:05:18]} Qe7 {[%emt 0:02:23]} 17. Ra1 {[%emt 0:02:34]} Nb6 {[%emt 0:01:32]} 18. Nh4 {[%emt 0:05:07]} Qd8 {[%emt 0:05:06]} 19. Rc1 {[%emt 0:04:21]} Ra8 {[%emt 0:07:16]} 20. Qc2 {[%emt 0:04:35]} a4 {[%emt 0:02:27]} 21. b4 {[%emt 0:05:37]} Rc8 {[%emt 0:21:39]} 22. Nf3 {[%emt 0:02:49]} Re7 {[%emt 0:04:44]} 23. Nd2 {[%emt 0:05:23]} h6 {[%emt 0:06:23]} 24. Rcd1 {[%emt 0:04:32]} Qd7 {[%emt 0:08:49]} 25. e4 {[%emt 0:05:06]} dxe4 {[%emt 0:05:39]} 26. Ncxe4 {[%emt 0:02:17]} Nxe4 {[%emt 0:01:50]} 27. Rxe4 {[%emt 0:03:53]} Rce8 {[%emt 0:02:50]} 28. Rde1 {[%emt 0:03:26]} Ba8 {[%emt 0:03:05]} 29. Rxe7 {[%emt 0:02:05]} Rxe7 {[%emt 0:00:31]} 30. Rxe7 {[%emt 0:01:44]} Bxe7 {[%emt 0:00:12]} 31. Ne4 {[%emt 0:07:03]} Nc4 {[%emt 0:00:54]} 32. Nd2 {[%emt 0:04:14]} Nxb2 {[%emt 0:00:53]} 33. Qxb2 {[%emt 0:00:09]} Bf6 {[%emt 0:00:16]} 34. Qc2 {[%emt 0:03:07]} Qxd4 {[%emt 0:03:31]} 35. Nf1 {[%emt 0:03:09]} Qc3 {[%emt 0:01:52]} 36. Qxc3 {[%emt 0:01:32]} Bxc3 {[%emt 0:00:11]} 37. Ne3 {[%emt 0:00:12]} Bb2 {[%emt 0:00:38]} 38. Nc2 {[%emt 0:00:15]} Kf8 {[%emt 0:00:05]} 39. Kf1 {[%emt 0:00:24]} Ke7 {[%emt 0:00:07]} 40. Ke2 {[%emt 0:00:15]} Kd6 {[%emt 0:00:05]} 41. Kd3 {[%emt 0:30:33]} Bb7 {[%emt 0:30:16]} 42. h3 {[%emt 0:02:32]} Bc8 {[%emt 0:00:07]} 43. g4 {[%emt 0:00:15]} Be6 {[%emt 0:00:06]} 44. f4 {[%emt 0:01:16]} Bb3 {[%emt 0:00:07]} 45. Be4 {[%emt 0:01:26]} Bc1 {[%emt 0:00:18]} 46. f5 {[%emt 0:02:21]} Bxc2+ {[%emt 0:00:47]} 47. Kxc2 {[%emt 0:00:08]} Bxa3 {[%emt 0:00:10]} 48. h4 {[%emt 0:00:24]} Bxb4 {[%emt 0:00:09]} 49. g5 {[%emt 0:00:16]} hxg5 {[%emt 0:00:22]} 50. hxg5 {[%emt 0:00:08]} c5 {[%emt 0:00:12]} 51. Bf3 {[%emt 0:00:39]} Ba5 {[%emt 0:00:15]} 52. Bh5 {[%emt 0:00:54]} Ke7 {[%emt 0:00:17]} 53. Bf3 {[%emt 0:00:27]} b4 {[%emt 0:00:13]} 54. Bd5 {[%emt 0:00:22]} f6 {[%emt 0:00:33]} 55. gxf6+ {[%emt 0:00:55]} Kxf6 {[%emt 0:00:15]} 56. Be4 {[%emt 0:00:29]} Ke5 {[%emt 0:00:07]} 57. Bd3 {[%emt 0:00:15]} Kd4 {[%emt 0:00:08]} 58. Kd2 {[%emt 0:00:17]} b3+ {[%emt 0:22:32]} 0-1

[Event "Fagernes Open 2021"]
[Site "Fagernes"]
[Date "2021.10.10"]
[Round "1.18"]
[White "Lystad, Maximilian L"]
[Black "Gasland, Lukas Dominik"]
[Result "1/2-1/2"]
[ECO "A11"]
[WhiteElo "1767"]
[BlackElo "1413"]
[Annotator "NA"]
[PlyCount "147"]
[EventDate "2021.10.10"]
[EventCountry "NOR"]
[SourceTitle "playchess.com"]
[Source "ChessBase"]
[SourceQuality "1"]
[TimeControl "40/5400+30:1800+30"]

1. c4 {[%emt 0:00:00]} c6 {[%emt 0:00:00]} 2. g3 {[%emt 0:00:00]} Nf6 {[%emt 0:00:00]} 3. Bg2 {[%emt 0:00:00]} d5 {[%emt 0:00:00]} 4. Nf3 {[%emt 0:00:00]} g6 {[%emt 0:00:00]} 5. b3 {[%emt 0:00:00]} Bg7 {[%emt 0:00:00]} 6. Bb2 {[%emt 0:00:00]} O-O {[%emt 0:00:00]} 7. O-O {[%emt 0:00:00]} Nbd7 {[%emt 0:00:00]} 8. d3 {[%emt 0:00:00]} dxc4 {[%emt 0:00:00]} 9. bxc4 {[%emt 0:01:13]} Ne8 {[%emt 0:04:33]} 10. Bxg7 {[%emt 0:02:23]} Nxg7 {[%emt 0:00:37]} 11. Nc3 {[%emt 0:00:10]} f5 {[%emt 0:01:46]} 12. d4 {[%emt 0:21:53]} Nf6 {[%emt 0:06:28]} 13. c5 {[%emt 0:07:55]} Be6 {[%emt 0:01:46]} 14. Ne5 {[%emt 0:02:43]} Nd5 {[%emt 0:02:03]} 15. Nxd5 {[%emt 0:01:12]} Bxd5 {[%emt 0:00:09]} 16. Bxd5+ {[%emt 0:03:44]} Qxd5 {[%emt 0:00:22]} 17. Qb3 {[%emt 0:01:10]} Qxb3 {[%emt 0:02:14]} 18. axb3 {[%emt 0:00:07]} Ne6 {[%emt 0:00:15]} 19. e3 {[%emt 0:00:17]} Nc7 {[%emt 0:01:13]} 20. Kg2 {[%emt 0:11:40]} Nb5 {[%emt 0:01:39]} 21. h4 {[%emt 0:01:29]} Kg7 {[%emt 0:03:36]} 22. h5 {[%emt 0:04:32]} Nc3 {[%emt 0:02:02]} 23. Rh1 {[%emt 0:04:25]} Ne4 {[%emt 0:03:16]} 24. Rh4 {[%emt 0:04:01]} g5 {[%emt 0:03:33]} 25. h6+ {[%emt 0:00:10]} Kf6 {[%emt 0:00:26]} 26. Nd7+ {[%emt 0:09:27]} Kf7 {[%emt 0:00:09]} 27. Rxe4 {[%emt 0:00:13]} fxe4 {[%emt 0:00:20]} 28. Nxf8 {[%emt 0:00:08]} Kxf8 {[%emt 0:00:23]} 29. Kh3 {[%emt 0:00:40]} Kf7 {[%emt 0:00:32]} 30. f3 {[%emt 0:08:17]} exf3 {[%emt 0:00:29]} 31. Rf1 {[%emt 0:00:04]} Kg6 {[%emt 0:00:07]} 32. Rxf3 {[%emt 0:00:07]} Kxh6 {[%emt 0:00:53]} 33. Rf7 {[%emt 0:00:51]} Re8 {[%emt 0:00:08]} 34. Rf5 {[%emt 0:10:04]} Kg6 {[%emt 0:01:00]} 35. Re5 {[%emt 0:00:09]} e6 {[%emt 0:00:25]} 36. g4 {[%emt 0:01:33]} Kf6 {[%emt 0:00:38]} 37. Re4 {[%emt 0:01:40]} Re7 {[%emt 0:03:38]} 38. Kg3 {[%emt 0:01:41]} h6 {[%emt 0:01:27]} 39. Kf3 {[%emt 0:00:55]} Rh7 {[%emt 0:00:23]} 40. b4 {[%emt 0:02:19]} a6 {[%emt 0:00:16]} 41. Kg2 {[%emt 0:31:57]} h5 {[%emt 0:30:37]} 42. gxh5 {[%emt 0:00:18]} Rxh5 {[%emt 0:00:20]} 43. Rg4 {[%emt 0:00:08]} Rh4 {[%emt 0:00:58]} 44. Rg3 {[%emt 0:00:16]} Kf5 {[%emt 0:01:08]} 45. Rf3+ {[%emt 0:02:05]} Ke4 {[%emt 0:00:54]} 46. Rf7 {[%emt 0:00:10]} Kxe3 {[%emt 0:00:16]} 47. Rxb7 {[%emt 0:00:05]} Kxd4 {[%emt 0:00:08]} 48. Rc7 {[%emt 0:01:23]} Kd5 {[%emt 0:00:35]} 49. Rd7+ {[%emt 0:00:11]} Ke5 {[%emt 0:00:06]} 50. Rd6 {[%emt 0:00:28]} Rxb4 {[%emt 0:00:06]} 51. Rxc6 {[%emt 0:00:04]} Rc4 {[%emt 0:01:18]} 52. Rxa6 {[%emt 0:00:44]} Rxc5 {[%emt 0:00:09]} 53. Kg3 {[%emt 0:00:05]} Kf5 {[%emt 0:00:19]} 54. Ra3 {[%emt 0:00:34]} Rc4 {[%emt 0:00:27]} 55. Ra8 {[%emt 0:01:02]} Rc3+ {[%emt 0:00:08]} 56. Kf2 {[%emt 0:00:07]} e5 {[%emt 0:01:08]} 57. Rf8+ {[%emt 0:00:08]} Ke4 {[%emt 0:00:07]} 58. Rg8 {[%emt 0:00:20]} Rc2+ {[%emt 0:00:23]} 59. Kg3 {[%emt 0:00:15]} Ke3 {[%emt 0:00:29]} 60. Rxg5 {[%emt 0:00:13]} e4 {[%emt 0:00:08]} 61. Ra5 {[%emt 0:02:32]} Ke2 {[%emt 0:00:37]} 62. Ra3 {[%emt 0:00:29]} e3 {[%emt 0:00:30]} 63. Kg2 {[%emt 0:00:40]} Kd1+ {[%emt 0:00:24]} 64. Kf3 {[%emt 0:00:05]} e2 {[%emt 0:00:44]} 65. Ra1+ {[%emt 0:00:17]} Kd2 {[%emt 0:01:45]} 66. Kf2 {[%emt 0:00:11]} Rb2 {[%emt 0:00:48]} 67. Re1 {[%emt 0:01:11]} Kd3 {[%emt 0:00:06]} 68. Kf3 {[%emt 0:00:34]} Rb8 {[%emt 0:00:15]} 69. Ra1 {[%emt 0:00:24]} Rf8+ {[%emt 0:03:55]} 70. Kg2 {[%emt 0:00:07]} Rc8 {[%emt 0:00:25]} 71. Kf2 {[%emt 0:00:32]} Rf8+ {[%emt 0:09:09]} 72. Kg2 {[%emt 0:00:07]} Rf1 {[%emt 0:00:04]} 73. Rxf1 {[%emt 0:00:06]} exf1=Q+ {[%emt 0:00:08]} 74. Kxf1 {[%emt 0:00:07]} 1/2-1/2

[Event "Fagernes Open 2021"]
[Site "Fagernes"]
[Date "2021.10.11"]
[Round "2.1"]
[White "Dulman, Egmond-Gabriel"]
[Black "Ostensen, Nicolai Maxime"]
[Result "1/2-1/2"]
[ECO "A38"]
[WhiteElo "2065"]
[BlackElo "1768"]
[Annotator "ChessBase"]
[PlyCount "148"]
[EventDate "2021.10.10"]
[EventCountry "NOR"]
[SourceTitle "playchess.com"]
[Source "ChessBase"]
[SourceQuality "1"]
[TimeControl "40/5400+30:1800+30"]

1. Nf3 {[%emt 0:00:00]} g6 {[%emt 0:00:00]} 2. g3 {[%emt 0:00:00]} Bg7 {[%emt 0:00:00]} 3. Bg2 {[%emt 0:00:00]} Nf6 {[%emt 0:00:00]} 4. O-O {[%emt 0:00:00]} O-O {[%emt 0:02:05]} 5. c4 {[%emt 0:00:00]} c5 {[%emt 0:00:00]} 6. Nc3 {[%emt 0:00:00]} Nc6 {[%emt 0:00:00]} 7. e4 {[%emt 0:00:04]} d6 {[%emt 0:00:00]} 8. d3 {[%emt 0:02:59]} Ne8 {[%emt 0:00:00]} 9. Bg5 {[%emt 0:02:58]} Nc7 {[%emt 0:01:26]} 10. Qd2 {[%emt 0:01:27]} Re8 {[%emt 0:09:57]} 11. Nh4 {[%emt 0:03:53]} a6 {[%emt 0:08:35]} 12. Bh6 {[%emt 0:01:55]} Rb8 {[%emt 0:06:01]} 13. Bxg7 {[%emt 0:00:43]} Kxg7 {[%emt 0:00:07]} 14. f4 {[%emt 0:00:56]} b5 {[%emt 0:08:16]} 15. e5 {[%emt 0:07:50]} Nd4 {[%emt 0:03:44]} 16. Ne4 {[%emt 0:01:04]} bxc4 {[%emt 0:07:46]} 17. exd6 {[%emt 0:02:46]} exd6 {[%emt 0:01:49]} 18. dxc4 {[%emt 0:04:22]} Bb7 {[%emt 0:03:47]} 19. Nc3 {[%emt 0:05:28]} Bxg2 {[%emt 0:01:49]} 20. Qxg2 {[%emt 0:00:22]} Rb4 {[%emt 0:02:53]} 21. f5 {[%emt 0:05:35]} Rxc4 {[%emt 0:08:09]} 22. f6+ {[%emt 0:01:47]} Kg8 {[%emt 0:00:22]} 23. Qd2 {[%emt 0:02:18]} Re6 {[%emt 0:01:39]} 24. Qg5 {[%emt 0:01:48]} Re5 {[%emt 0:06:34]} 25. Qd2 {[%emt 0:01:49]} Nc6 {[%emt 0:10:17]} 26. Nf5 {[%emt 0:03:51]} d5 {[%emt 0:05:26]} 27. b3 {[%emt 0:04:47]} Rb4 {[%emt 0:00:36]} 28. a3 {[%emt 0:03:54]} Rb8 {[%emt 0:00:50]} 29. Nh6+ {[%emt 0:01:57]} Kf8 {[%emt 0:00:05]} 30. Ng4 {[%emt 0:00:11]} Rh5 {[%emt 0:00:54]} 31. Na4 {[%emt 0:02:23]} Ne6 {[%emt 0:00:46]} 32. Rac1 {[%emt 0:01:27]} d4 {[%emt 0:00:23]} 33. b4 {[%emt 0:00:43]} Qd7 {[%emt 0:05:05]} 34. bxc5 {[%emt 0:02:01]} Ng5 {[%emt 0:01:00]} 35. Qg2 {[%emt 0:11:43]} Re8 {[%emt 0:00:58]} 36. Nf2 {[%emt 0:03:23]} Ne5 {[%emt 0:00:55]} 37. Nb6 {[%emt 0:00:47]} Ngf3+ {[%emt 0:01:04]} 38. Kh1 {[%emt 0:00:11]} Qc6 {[%emt 0:00:53]} 39. h3 {[%emt 0:06:28]} Qxf6 {[%emt 0:02:02]} 40. Ng4 {[%emt 0:00:35]} Qc6 {[%emt 0:01:25]} 41. Nxe5 {[%emt 0:32:31]} Nxe5 {[%emt 0:30:18]} 42. Qxc6 {[%emt 0:01:01]} Nxc6 {[%emt 0:01:25]} 43. Nd7+ {[%emt 0:00:09]} Kg7 {[%emt 0:00:00]} 44. Nf6 {[%emt 0:00:00]} Rxh3+ {[%emt 0:00:00]} 45. Kg2 {[%emt 0:00:00]} Re6 {[%emt 0:00:00]} 46. Kxh3 {[%emt 0:00:00]} Rxf6 {[%emt 0:00:00]} 47. Rfd1 {[%emt 0:00:00]} Rf3 {[%emt 0:00:00]} 48. Rb1 {[%emt 0:00:00]} Rf5 {[%emt 0:00:00]} 49. Rb6 {[%emt 0:00:00]} Rxc5 {[%emt 0:00:00]} 50. Rxa6 {[%emt 0:00:00]} h5 {[%emt 0:00:00]} 51. Rd2 {[%emt 0:00:00]} Kh6 {[%emt 0:00:00]} 52. a4 {[%emt 0:00:00]} Kg5 {[%emt 0:00:00]} 53. Rb6 {[%emt 0:00:00]} f5 {[%emt 0:00:00]} 54. Rb5 {[%emt 0:00:00]} Rc4 {[%emt 0:00:00]} 55. Ra2 {[%emt 0:00:00]} Nb4 {[%emt 0:00:00]} 56. Rb2 {[%emt 0:00:00]} d3 {[%emt 0:00:00]} 57. a5 {[%emt 0:00:00]} h4 {[%emt 0:00:00]} 58. R2xb4 {[%emt 0:00:00]} d2 {[%emt 0:00:00]} 59. Rb1 {[%emt 0:00:00]} Rc1 {[%emt 0:00:00]} 60. gxh4+ {[%emt 0:00:01]} Kh6 {[%emt 0:00:00]} 61. Rd5 {[%emt 0:01:12]} Rxb1 {[%emt 0:00:00]} 62. Rxd2 {[%emt 0:00:09]} Rb3+ {[%emt 0:00:00]} 63. Kh2 {[%emt 0:02:27]} Ra3 {[%emt 0:00:00]} 64. Rg2 {[%emt 0:02:02]} Rxa5 {[%emt 0:00:00]} 65. Rg5 {[%emt 0:00:13]} Ra3 {[%emt 0:00:00]} 66. Kg2 {[%emt 0:00:10]} Ra7 {[%emt 0:00:00]} 67. Kg3 {[%emt 0:00:55]} Ra1 {[%emt 0:00:00]} 68. Kg2 {[%emt 0:00:16]} Re1 {[%emt 0:00:00]} 69. Kh2 {[%emt 0:00:24]} Re8 {[%emt 0:00:00]} 70. Kg3 {[%emt 0:00:42]} Re3+ {[%emt 0:00:00]} 71. Kg2 {[%emt 0:00:11]} Re8 {[%emt 0:00:00]} 72. Kg3 {[%emt 0:00:10]} Re3+ {[%emt 0:00:00]} 73. Kg2 {[%emt 0:00:05]} Re8 {[%emt 0:00:00]} 74. Kg3 {[%emt 0:00:09]} Re3+ {[%emt 0:00:00]} 1/2-1/2

[Event "Fagernes Open 2021"]
[Site "Fagernes"]
[Date "2021.10.11"]
[Round "2.2"]
[White "Cross, Jamie"]
[Black "Krivenko, Dion"]
[Result "1/2-1/2"]
[ECO "B22"]
[WhiteElo "1761"]
[BlackElo "2045"]
[Annotator "NA"]
[PlyCount "228"]
[EventDate "2021.10.10"]
[EventCountry "NOR"]
[SourceTitle "playchess.com"]
[Source "ChessBase"]
[SourceQuality "1"]
[TimeControl "40/5400+30:1800+30"]

1. e4 {[%emt 0:00:00]} c5 {[%emt 0:00:00]} 2. c3 {[%emt 0:00:00]} d5 {[%emt 0:00:00]} 3. exd5 {[%emt 0:00:00]} Qxd5 {[%emt 0:00:00]} 4. d4 {[%emt 0:00:00]} Nc6 {[%emt 0:00:00]} 5. Nf3 {[%emt 0:00:00]} Bf5 {[%emt 0:00:00]} 6. Nbd2 {[%emt 0:05:42]} Qe6+ {[%emt 0:00:00]} 7. Be2 {[%emt 0:10:15]} cxd4 {[%emt 0:00:00]} 8. Nxd4 {[%emt 0:09:29]} Nxd4 {[%emt 0:05:10]} 9. cxd4 {[%emt 0:00:12]} Bd3 {[%emt 0:02:42]} 10. Nf3 {[%emt 0:00:25]} Bxe2 {[%emt 0:00:13]} 11. Qxe2 {[%emt 0:00:08]} Qxe2+ {[%emt 0:00:04]} 12. Kxe2 {[%emt 0:00:08]} Nf6 {[%emt 0:00:20]} 13. Bf4 {[%emt 0:11:46]} Nd5 {[%emt 0:01:28]} 14. Be5 {[%emt 0:00:43]} e6 {[%emt 0:01:59]} 15. Rac1 {[%emt 0:02:39]} Kd7 {[%emt 0:04:06]} 16. Rc2 {[%emt 0:04:37]} f6 {[%emt 0:01:50]} 17. Bg3 {[%emt 0:00:23]} Bd6 {[%emt 0:00:59]} 18. Bxd6 {[%emt 0:00:30]} Kxd6 {[%emt 0:00:02]} 19. Rhc1 {[%emt 0:01:07]} Nf4+ {[%emt 0:08:11]} 20. Kf1 {[%emt 0:01:34]} Nd3 {[%emt 0:01:49]} 21. Rd1 {[%emt 0:04:19]} Nb4 {[%emt 0:00:11]} 22. Rc4 {[%emt 0:01:17]} Nc6 {[%emt 0:06:21]} 23. Ne1 {[%emt 0:20:31]} Rac8 {[%emt 0:03:01]} 24. b3 {[%emt 0:08:29]} Na5 {[%emt 0:04:07]} 25. Rc2 {[%emt 0:00:39]} b6 {[%emt 0:02:58]} 26. Ke2 {[%emt 0:02:27]} Kd5 {[%emt 0:01:25]} 27. Ke3 {[%emt 0:01:12]} Nc6 {[%emt 0:07:28]} 28. Nd3 {[%emt 0:05:12]} Ne7 {[%emt 0:01:57]} 29. Nb4+ {[%emt 0:02:43]} Kd6 {[%emt 0:00:12]} 30. Kd3 {[%emt 0:02:23]} a5 {[%emt 0:01:10]} 31. Rxc8 {[%emt 0:00:07]} Rxc8 {[%emt 0:00:05]} 32. Nc2 {[%emt 0:00:06]} Nd5 {[%emt 0:00:51]} 33. g3 {[%emt 0:01:00]} Rc6 {[%emt 0:12:33]} 34. Ra1 {[%emt 0:03:16]} g5 {[%emt 0:07:13]} 35. Ne3 {[%emt 0:01:20]} b5 {[%emt 0:03:22]} 36. Nxd5 {[%emt 0:01:42]} Kxd5 {[%emt 0:00:02]} 37. a3 {[%emt 0:00:17]} h5 {[%emt 0:02:12]} 38. h3 {[%emt 0:00:37]} Rc8 {[%emt 0:02:13]} 39. h4 {[%emt 0:01:31]} gxh4 {[%emt 0:00:35]} 40. gxh4 {[%emt 0:00:08]} Rg8 {[%emt 0:00:16]} 41. Rc1 {[%emt 0:00:00]} Rg4 {[%emt 0:00:00]} 42. Rc5+ {[%emt 0:00:00]} Kd6 {[%emt 0:00:00]} 43. Rxh5 {[%emt 0:00:00]} f5 {[%emt 0:00:07]} 44. Rh8 {[%emt 0:00:00]} Rf4 {[%emt 0:01:34]} 45. Ke3 {[%emt 0:00:11]} Re4+ {[%emt 0:00:28]} 46. Kf3 {[%emt 0:00:32]} Ke7 {[%emt 0:00:38]} 47. Rb8 {[%emt 0:05:44]} Rxd4 {[%emt 0:01:49]} 48. Rxb5 {[%emt 0:00:09]} a4 {[%emt 0:01:58]} 49. bxa4 {[%emt 0:04:36]} Rxa4 {[%emt 0:00:50]} 50. Rb3 {[%emt 0:00:41]} Rxh4 {[%emt 0:00:05]} 51. Kg3 {[%emt 0:03:37]} Ra4 {[%emt 0:00:11]} 52. f4 {[%emt 0:00:34]} Kd6 {[%emt 0:00:35]} 53. Kf3 {[%emt 0:00:49]} Kd5 {[%emt 0:02:06]} 54. Ke3 {[%emt 0:02:35]} Ra8 {[%emt 0:01:08]} 55. Rd3+ {[%emt 0:03:22]} Kc5 {[%emt 0:01:15]} 56. Rc3+ {[%emt 0:00:36]} Kd5 {[%emt 0:00:10]} 57. Rd3+ {[%emt 0:00:06]} Kc4 {[%emt 0:01:24]} 58. Rd4+ {[%emt 0:01:11]} Kc5 {[%emt 0:00:23]} 59. Rd3 {[%emt 0:00:06]} Rh8 {[%emt 0:00:52]} 60. Rc3+ {[%emt 0:00:25]} Kd5 {[%emt 0:00:32]} 61. Rd3+ {[%emt 0:00:35]} Kc4 {[%emt 0:00:23]} 62. Rd6 {[%emt 0:00:42]} Rh3+ {[%emt 0:00:50]} 63. Kf2 {[%emt 0:00:32]} Rh6 {[%emt 0:02:53]} 64. Ra6 {[%emt 0:05:20]} Kd3 {[%emt 0:02:03]} 65. Kf3 {[%emt 0:00:55]} Rh3+ {[%emt 0:01:33]} 66. Kf2 {[%emt 0:00:42]} Ke4 {[%emt 0:01:32]} 67. Rxe6+ {[%emt 0:01:02]} Kxf4 $11 {[%emt 0:00:05]} 68. a4 {[%emt 0:01:44]} Ra3 {[%emt 0:00:23]} 69. Rh6 {[%emt 0:01:03]} Ra2+ {[%emt 0:00:15]} 70. Kf1 {[%emt 0:00:34]} Kf3 {[%emt 0:00:27]} 71. Rh3+ {[%emt 0:00:06]} Kg4 {[%emt 0:00:11]} 72. Rb3 {[%emt 0:00:04]} Rxa4 {[%emt 0:00:15]} 73. Rc3 {[%emt 0:00:09]} f4 {[%emt 0:01:40]} 74. Rb3 {[%emt 0:00:08]} Ra1+ {[%emt 0:01:57]} 75. Kf2 {[%emt 0:00:06]} Ra2+ {[%emt 0:00:56]} 76. Kf1 {[%emt 0:00:09]} Kf5 {[%emt 0:01:33]} 77. Rb5+ {[%emt 0:00:14]} Ke4 {[%emt 0:00:20]} 78. Rb4+ {[%emt 0:00:06]} Kf3 {[%emt 0:00:05]} 79. Rb3+ {[%emt 0:00:05]} Kg4 {[%emt 0:00:04]} 80. Rc3 {[%emt 0:00:13]} Ra4 {[%emt 0:00:34]} 81. Rb3 {[%emt 0:00:10]} Kf5 {[%emt 0:01:05]} 82. Rc3 {[%emt 0:00:14]} Ke4 {[%emt 0:00:10]} 83. Rb3 {[%emt 0:00:04]} Kd4 {[%emt 0:00:47]} 84. Rf3 {[%emt 0:00:32]} Ra1+ {[%emt 0:00:34]} 85. Kf2 {[%emt 0:00:11]} Ke4 {[%emt 0:00:20]} 86. Rb3 {[%emt 0:00:06]} Rh1 {[%emt 0:00:25]} 87. Rb4+ {[%emt 0:00:10]} Kf5 {[%emt 0:00:03]} 88. Rb5+ {[%emt 0:00:21]} Kg4 {[%emt 0:00:01]} 89. Rb3 {[%emt 0:00:06]} Rh2+ {[%emt 0:00:33]} 90. Kf1 {[%emt 0:00:05]} Rh5 {[%emt 0:00:36]} 91. Rc3 {[%emt 0:00:20]} Ra5 {[%emt 0:02:02]} 92. Rb3 {[%emt 0:00:07]} Ra4 {[%emt 0:00:33]} 93. Rc3 {[%emt 0:00:07]} Kf5 {[%emt 0:00:26]} 94. Rb3 {[%emt 0:00:06]} Ke4 {[%emt 0:00:05]} 95. Rc3 {[%emt 0:00:08]} Rd4 {[%emt 0:00:20]} 96. Rb3 {[%emt 0:00:15]} Rd5 {[%emt 0:01:04]} 97. Rb4+ {[%emt 0:00:46]} Kf3 {[%emt 0:00:30]} 98. Rb3+ {[%emt 0:00:05]} Kg4 {[%emt 0:00:05]} 99. Kf2 {[%emt 0:00:21]} Rd2+ {[%emt 0:00:26]} 100. Kf1 {[%emt 0:00:05]} Rh2 {[%emt 0:00:18]} 101. Rc3 {[%emt 0:00:09]} Rh3 {[%emt 0:00:22]} 102. Rxh3 {[%emt 0:00:31]} Kxh3 {[%emt 0:00:01]} 103. Kf2 {[%emt 0:00:07]} Kg4 {[%emt 0:00:05]} 104. Kg2 {[%emt 0:00:04]} Kg5 {[%emt 0:00:09]} 105. Kf3 {[%emt 0:00:06]} Kf5 {[%emt 0:00:01]} 106. Kf2 {[%emt 0:00:07]} Kg4 {[%emt 0:00:05]} 107. Kg2 {[%emt 0:00:04]} f3+ {[%emt 0:00:03]} 108. Kf2 {[%emt 0:00:05]} Kf4 {[%emt 0:00:02]} 109. Kf1 {[%emt 0:00:09]} Ke3 {[%emt 0:00:06]} 110. Ke1 {[%emt 0:00:04]} Ke4 {[%emt 0:00:05]} 111. Kf2 {[%emt 0:00:05]} Kf4 {[%emt 0:00:02]} 112. Kf1 {[%emt 0:00:09]} Ke3 {[%emt 0:00:03]} 113. Ke1 {[%emt 0:00:06]} f2+ {[%emt 0:00:10]} 114. Kf1 {[%emt 0:00:04]} Kf3 {[%emt 0:00:04]} 1/2-1/2